Cogmind - Beta 16 --- EXPLORER MODE // 2025.12.12 @ 13:54:08 Player: K.K.Y. Result: Destroyed by YD-W1M(R) with Subdweller Laser Performance ------------- Evolutions (0) 0 Regions Visited (3) 600 Robots Destroyed (35) 175 Value Destroyed (655) 655 Prototype IDs (6) 120 Alien Tech Used (0) 0 Bonus (0) 0 TOTAL SCORE: 1550 Bonus ------- None Cogmind --------- Core Integrity 0/250 Matter 259/300 Energy 100/100 System Corruption 0% Temperature Cool (6) Movement Flying (120) Ox1 Location -10/Subcaves Parts ------- > --- POWER (1) -------- (None) > --- PROPULSION (3) --- Flight Unit > --- UTILITY (2) ------ Improved Terrain Scanner > --- WEAPON (2) ------- Battle Rifle Mace > --- INVENTORY (5) ---- Huge Storage Unit Humpback Rocket Launcher Mining Laser Peak State ------------ > --- POWER ------------ (None) > --- PROPULSION ------- Flight Unit Flight Unit Flight Unit > --- UTILITY ---------- Improved Terrain Scanner > --- WEAPON ----------- Battle Rifle Mace > --- INVENTORY -------- Huge Storage Unit Rocket Launcher Mining Laser [Rating: 10] Favorites ----------- Power Light Ion Engine Engine Light Ion Engine Propulsion Flight Unit Wheel Wheel Flight Unit Flight Unit Utility Improved Terrain Scanner Device Improved Terrain Scanner Storage Huge Storage Unit Weapon Medium Laser Energy Gun Medium Laser Energy Cannon Light EM Pulse Cannon Ballistic Gun Battle Rifle Impact Weapon Mace Build | -11 -10 -10 -10 ------- Run | Yrd Mat Min Sub Slots Evolved 1 | . 1 . . Power . | . . . . Propulsion 1 | . 1 . . Utility . | . . . . Weapon . | . . . . Parts Attached 21 | 4 8 5 4 Power 2 | 1 1 . . Engine 2 | 1 1 . . Core . | . . . . Reactor . | . . . . Propulsion 9 | 2 3 4 . Treads . | . . . . Leg . | . . . . Wheel 2 | 2 . . . Hover . | . . . . Flight 7 | . 3 4 . Utility 3 | . 1 . 2 Device 1 | . . . 1 Storage 2 | . 1 . 1 Processor . | . . . . Hackware . | . . . . Protection . | . . . . Artifact . | . . . . Weapon 7 | 1 3 1 2 Energy Gun 3 | 1 1 1 . Energy Cannon 1 | . 1 . . Ballistic Gun 2 | . . . 2 Ballistic Cannon . | . . . . Launcher . | . . . . Special Weapon . | . . . . Impact Weapon 1 | . 1 . . Slashing Weapon . | . . . . Piercing Weapon . | . . . . Special Melee Weapon . | . . . . Unidentified Prototypes . | . . . . Parts Lost 6 | . . 1 5 Power 1 | . . . 1 Propulsion 4 | . . 1 3 Utility . | . . . . Weapon 1 | . . . 1 Highest Loss Streak 2 | . . 1 2 To Critical Strikes . | . . . . Average Backups 3 | . 3 4 4 Power . | . . . . Propulsion . | . . . . Utility 1 | . 1 2 2 Weapon 1 | . 1 2 2 Tool/Special . | . . . . Unused Backups 3 | . 1 . 2 Power . | . . . . Propulsion . | . . . . Utility 1 | . 1 . . Weapon 2 | . . . 2 Tool/Special . | . . . . Average Slot Usage (%) 61 | . 58 74 58 Engine 9 | . 12 12 2 Wheel 10 | . 21 . . Flight 17 | . 5 36 25 Device 1 | . . . 5 Energy Gun 9 | . 12 12 2 Ballistic Gun 2 | . . . 9 Impact Weapon 9 | . 6 12 12 Peak Build Rating 10 | 4 7 7 10 Average Rating 5 | 3 5 6 7 On Entrance 4 | . 4 7 7 Avg Prop Armor Cover (%) . | . . . . Naked Turns . | . . . . Heaviest Build 9 | 5 9 9 9 Greatest Support 20 | 20 20 12 12 Greatest Overweight (x) 1 | . . 1 1 Average Overweight (x) . | . . . . Largest Inventory Capacity 35 | 5 25 5 35 Average Capacity 5 | 5 5 5 5 Most Carried 5 | 3 5 5 5 Average Carried 3 | . 3 4 4 Final Capacity 5 | 5 5 5 5 Final Carried 5 | 2 4 5 5 Class Distribution -------------------- 100% | Hacker-Mutant Dominant Class ---------------- Hacker-Mutant | -10/Materials Hacker-Mutant | -10/Mines Hacker-Mutant | -10/Subcaves Resources | -11 -10 -10 -10 ----------- Run | Yrd Mat Min Sub Matter Collected 548 | 240 90 60 158 Remotely . | . . . . Salvage Created 1034 | 302 238 148 346 Parts 63 | 27 13 9 14 Haulers Intercepted 1 | . 1 . . Recyclers Shooed . | . . . . Parts Field Recycled . | . . . . Retrieved Matter . | . . . . Parts Self-Destructed . | . . . . Prevented . | . . . . Parts Restored . | . . . . Kills | -11 -10 -10 -10 ------- Run | Yrd Mat Min Sub Combat Hostiles Destroyed 19 | . 4 7 8 Melee 1 | . . . 1 Guns 17 | . 4 7 6 Classes Destroyed 9 | 3 4 1 1 Worker 2 | 2 . . . Tunneler 8 | 8 . . . Hauler 1 | . 1 . . Recycler 2 | 1 . 1 . Watcher 3 | . 3 . . Swarmer 8 | . 2 6 . Grunt 4 | . 2 . 2 Demolisher 1 | . . 1 . Subdweller 6 | . . . 6 Best Kill Streak 4 | 4 2 2 2 Combat Bots Only 2 | . 2 2 2 Max Kills in Single Turn 1 | 1 1 1 1 Gunslinging . | . . . . Exploded . | . . . . Melee 1 | . . . 1 Uniques/NPCs Destroyed . | . . . . Combat | -11 -10 -10 -10 -------- Run | Yrd Mat Min Sub Hostile Shots Fired 105 | . 22 23 60 Missed 37 | . 6 7 24 Hits 68 | . 16 16 36 Projectile 68 | . 16 16 36 AOE 7 | . . 4 3 Critical Strikes 1 | . . . 1 Damage Taken 797 | . 121 138 538 Core 250 | . 23 17 210 Absorbed by Shields . | . . . . Ignored by Resistances 455 | . 75 93 287 Core Remaining (%) 100 | 100 . . . Volleys Fired 141 | 18 31 22 70 Largest 1 | 1 1 1 1 Hottest 50 | 50 50 50 50 Shots Fired 141 | 18 31 22 70 Gun 141 | 18 31 22 70 Cannon . | . . . . Launcher . | . . . . Special . | . . . . Kinetic 53 | . . . 53 Thermal 88 | 18 31 22 17 Explosive . | . . . . Electromagnetic . | . . . . Robot Hit Streak 24 | 9 14 10 24 Robot Miss Streak 2 | 1 1 2 1 Penetration Max . | . . . . Secondary Targets . | . . . . Shots Hit Robots 110 | 16 28 17 49 Core Hits 50 | 12 11 10 17 Critical Kills . | . . . . Critical Parts Destroyed 1 | . . . 1 Critical Strikes 6 | . 2 3 1 Burn 5 | . 2 3 . Smash 1 | . . . 1 Melee Attacks 8 | . . . 8 Impact 8 | . . . 8 Slashing . | . . . . Piercing . | . . . . Sneak Attacks . | . . . . Combat Hostiles . | . . . . Follow-up Attacks . | . . . . Damage Inflicted 1509 | 198 351 215 745 Guns 1273 | 198 351 215 509 Cannons . | . . . . Explosions . | . . . . Melee 236 | . . . 236 Ramming . | . . . . Kinetic 324 | . . . 324 Thermal 949 | 198 351 215 185 Explosive . | . . . . Electromagnetic . | . . . . Impact 236 | . . . 236 Slashing . | . . . . Piercing . | . . . . Highest Corruption . | . . . . Average Corruption . | . . . . Corruption Purged . | . . . . Corruption Blocked . | . . . . Overload Shots . | . . . . Overflow Damage 70 | . . . 70 Projectiles . | . . . . Explosions . | . . . . Melee 70 | . . . 70 Knockbacks . | . . . . Impact . | . . . . Kinetic . | . . . . Secondary . | . . . . Self-Inflicted Damage . | . . . . Shots . | . . . . Rammed . | . . . . Targets Rammed . | . . . . Kicked . | . . . . Crushed . | . . . . Highest Temperature 158 | 30 158 80 15 Average Temperature 35 | 14 43 33 9 Received Heat Transfer 288 | . 90 . 198 Siege Activations . | . . . . Martial Activations . | . . . . Shielding Activations . | . . . . Robots Disrupted . | . . . . Combat Hostiles . | . . . . Robots Corrupted 1 | . . . 1 Combat Hostiles 1 | . . . 1 Parts Fried . | . . . . Impact Corruptions 2 | . . . 2 Robots Melted 1 | . 1 . . Combat Hostiles . | . . . . Parts Melted 9 | . 4 3 2 Heat Transferred 3182 | 592 1184 851 555 Parts Sabotaged . | . . . . Parts Stolen . | . . . . Parts Stripped . | . . . . Power Chain Reactions . | . . . . Alert | -11 -10 -10 -10 ------- Run | Yrd Mat Min Sub Maximum Alert Level . | . . . . Low Security (%) 100 | 100 100 100 . Level 1 . | . . . . Level 2 . | . . . . Level 3 . | . . . . Level 4 . | . . . . Level 5 . | . . . . High Security . | . . . . Max Security . | . . . . Peak Influence 105 | 10 53 105 . Initial 4 | . 4 3 . Average 14 | 1 6 43 . Influence Increases 459 | 55 179 175 50 Destroy 0b10 Robot/C 260 | . 80 140 40 Destroy 0b10 Robot/NC 80 | 55 20 5 . Destroy Leader 68 | . 28 30 10 Successful Hack 36 | . 36 . . Lose Combat Pursuer 15 | . 15 . . Influence Decreases 459 | 45 177 157 80 Entered New Map 35 | . 6 9 20 Time Decay 394 | 45 171 138 40 Lost Part 30 | . . 10 20 Squads Dispatched . | . . . . Investigation . | . . . . Extermination . | . . . . Reinforcement . | . . . . Assault . | . . . . Garrison . | . . . . Intercept . | . . . . Searches Triggered . | . . . . Construction Impeded . | . . . . Haulers Reinforced . | . . . . Active Scanning Responses . | . . . . Cargo Convoy Interrupts . | . . . . Stealth | -11 -10 -10 -10 --------- Run | Yrd Mat Min Sub Distress Signals . | . . . . Communications Jammed . | . . . . Distress Signals . | . . . . Times Spotted 30 | . 9 12 9 Peak Tracking Total 19 | . 3 19 2 Tactical Retreats 2 | . 1 1 . Traps | -11 -10 -10 -10 ------- Run | Yrd Mat Min Sub Traps Triggered 1 | . . . 1 Indirectly . | . . . . Trap Hack Attempts . | . . . . Triggered . | . . . . Disarmed . | . . . . Reprogrammed . | . . . . Reused . | . . . . Traps Extracted . | . . . . Installed . | . . . . Triggered . | . . . . Machines | -11 -10 -10 -10 ---------- Run | Yrd Mat Min Sub Machines Disabled . | . . . . Max in Single Turn . | . . . . Machines Repaired . | . . . . Machines Dismantled . | . . . . Machines Sabotaged . | . . . . Overloaded Fab Kills . | . . . . Hacking | -11 -10 -10 -10 --------- Run | Yrd Mat Min Sub Machines Accessed 9 | . 9 . . Terminals 7 | . 7 . . Fabricators . | . . . . Repair Stations . | . . . . Recycling Units 2 | . 2 . . Scanalyzers . | . . . . Garrison Access . | . . . . Total Hacks 20 | . 20 . . Successful 14 | . 14 . . Failed 6 | . 6 . . Catastrophic . | . . . . Database Lockouts . | . . . . Manual 19 | . 19 . . Terminals 18 | . 18 . . Fabricators . | . . . . Repair Stations . | . . . . Recycling Units 2 | . 2 . . Scanalyzers . | . . . . Garrison Access . | . . . . Terminal Hacks 6 | . 6 . . Prototype ID Bank 6 | . 6 . . Fabricator Hacks . | . . . . Repair Station Hacks . | . . . . Recycling Unit Hacks 1 | . 1 . . Retrieve Components 1 | . 1 . . Scanalyzer . | . . . . Garrison Access Hacks . | . . . . Unauthorized Hacks 7 | . 7 . . Terminals 6 | . 6 . . Botnet 6 | . 6 . . Fabricators . | . . . . Repair Stations . | . . . . Recycling Units 1 | . 1 . . Reject 1 | . 1 . . Scanalyzers . | . . . . Garrison Access . | . . . . Data Cores Recovered . | . . . . Used . | . . . . Hacking Detections 5 | . 5 . . Full Trace Events 1 | . 1 . . Feedback Events . | . . . . Feedback Blocked . | . . . . Robot Schematics Acquired . | . . . . Robots Built . | . . . . Authchips . | . . . . Time . | . . . . Total Robot Build Rating . | . . . . Part Schematics Acquired . | . . . . Parts Built . | . . . . Authchips . | . . . . Time . | . . . . Total Part Build Rating . | . . . . Part Studies Acquired . | . . . . Parts Repaired . | . . . . Time . | . . . . Parts Recycled . | . . . . Recycled Matter . | . . . . Retrieved Matter . | . . . . Retrieved Components 3 | . 3 . . Parts Scanalyzed . | . . . . Part Schematics Acquired . | . . . . Parts Damaged . | . . . . Bothacking | -11 -10 -10 -10 ------------ Run | Yrd Mat Min Sub Used RIF Installer . | . . . . Robots Hacked . | . . . . Non-combat . | . . . . Combat . | . . . . Robot Hacks Applied . | . . . . Relay Couplers Released . | . . . . Fabnet Peak Effective % . | . . . . Robots Rewired . | . . . . Allies Hacked . | . . . . Hacks Repelled . | . . . . Allies | -11 -10 -10 -10 -------- Run | Yrd Mat Min Sub Total Allies 3 | . . 3 . Largest Group 3 | . . 3 . Highest-Rated Group 40 | . . 40 . Highest-Rated Ally 16 | . . 16 . Total Orders . | . . . . Ally Attacks 11 | . . 11 . Total Damage 57 | . . 57 . Kills . | . . . . Allies Corrupted . | . . . . Allies Melted 1 | . . 1 . Intel | -11 -10 -10 -10 ------- Run | Yrd Mat Min Sub Active Infowar (turns) 173 | . . . 173 Terrain 173 | . . . 173 Robot Analysis Total . | . . . . Derelict Logs Recovered . | . . . . Drone Launches . | . . . . Drone Recoveries . | . . . . Exploration | -11 -10 -10 -10 ------------- Run | Yrd Mat Min Sub Turns Passed 1547 | 233 649 295 370 Spaces Moved 1934 | 72 749 662 451 Core 45 | 45 . . . Treads . | . . . . Legs . | . . . . Wheels 540 | 27 513 . . Hover . | . . . . Flight 1349 | . 236 662 451 Fastest Speed 34 | 50 34 34 34 Average Speed 48 | 61 65 35 38 Slowest Speed 120 | 80 80 117 120 Overloaded Moves . | . . . . Propulsion Burnouts . | . . . . Robots Hopped 3 | . . 3 . Potential Cave-ins . | . . . . Cave-ins Triggered . | . . . . Exploration Rate (%) 58 | 4 99 97 35 Regions Visited 3 Branch Regions 2 Pre-discovered Areas . | . . . . Known Exits Taken 3 | 1 1 1 . Unknown Exits Taken . | . . . . Scrap Searched . | . . . . Spaces Dug . | . . . . Terrain Destroyed . | . . . . Melee . | . . . . Projectile . | . . . . AOE . | . . . . Terrain Rammed . | . . . . Walls Destroyed . | . . . . Machines Disabled . | . . . . Actions | -11 -10 -10 -10 --------- Run | Yrd Mat Min Sub Total 2386 | 242 876 702 566 Wait 254 | 143 75 7 29 Move 1925 | 71 748 655 451 Hop 3 | . . 3 . Pick Up 17 | 6 6 4 1 Fast Attach 6 | . 4 . 2 Attach 9 | 4 2 1 2 Detach . | . . . . Swap 9 | . 3 5 1 Drop 14 | . 7 5 2 Fire 141 | 18 31 22 70 Melee 8 | . . . 8 Ram . | . . . . Kick . | . . . . Crush . | . . . . Escape Stasis . | . . . . Rewire . | . . . . Trap . | . . . . Miscellaneous . | . . . . Route ------- -11/Scrapyard -10/Materials (discovered 5 exits: *Mat x3 / *Min x2) -10/Mines (discovered 3 exits: *Mat / *Exi / *Sub) -10/Subcaves History --------- Turn | Location | Event 7 | -11/Scrapyard | Identified exit to Materials 7 | -11/Scrapyard | Discovered exit to Materials (range 16) 234 | -11/Scrapyard | Entered Materials 234 | -10/Materials | Evolved 1 slot: Propulsion x1 297 | -10/Materials | Identified exit to Materials 297 | -10/Materials | Discovered exit to Materials (range 4) 311 | -10/Materials | Build established: Hacker-Mutant 573 | -10/Materials | Discovered exit to Materials (range 9) 629 | -10/Materials | Discovered exit to Materials (range 11) 801 | -10/Materials | Identified exit to Mines 801 | -10/Materials | Discovered exit to Mines (range 10) 832 | -10/Materials | Discovered exit to Mines (range 8) 883 | -10/Materials | Entered Mines 885 | -10/Mines | Assisted by bots powering up and referring to "LRC-V3" 889 | -10/Mines | Assembled infested the area 903 | -10/Mines | Found a hidden stash of uninstalled traps 1052 | -10/Mines | Discovered exit to Materials (range 3) 1066 | -10/Mines | Deemed a non-threat by the Exiles lab entrance 1066 | -10/Mines | Identified exit to Exiles 1066 | -10/Mines | Discovered exit to Exiles (range 5) 1173 | -10/Mines | Identified exit to Subcaves 1173 | -10/Mines | Discovered exit to Subcaves (range 8) 1178 | -10/Mines | Entered Subcaves 1179 | -10/Subcaves | Approached by a straggling Scientist 1304 | -10/Subcaves | A swath of the cavern ceiling suddenly collapsed 1371 | -10/Subcaves | Shifting Twisted Machinery released Humpback 1380 | -10/Subcaves | Shifting Twisted Machinery released Sub. Monowheel 1387 | -10/Subcaves | Core integrity fell below 50% 1537 | -10/Subcaves | Core integrity fell below 20% 1548 | -10/Subcaves | Destroyed by YD-W1M(R) with Subdweller Laser Last Messages --------------- 01373_ Acquired Humpback. 01375_ Dropped Humpback. 01377_ Acquired Humpback. Sub. Monowheel falls loose from the Twisted Machinery. 01388_ Flight Unit destroyed. 01391_ 6G-LCC(R) destroyed. 01398_ WB-SEG(R) destroyed. 01403_ Acquired 58 matter. 01403_ Acquired 35 matter. 01442_ Acquired 34 matter. 01447_ ZQ-0L4(R): "MADSUB!" 01466_ ZQ-0L4(R) destroyed. 01468_ Acquired 12 matter. 01495_ Dropped Battle Rifle. 01522_ Flight Unit destroyed. 01524_ 8M-8FZ(R) destroyed. 01536_ Triggered Piercing Trap. 01536_ Spikes shoot up from the floor. 01536_ Critical hit (Impale). Map ----- +----------------------------------------------------+ | ?????# ## # # ##??? ???????????????? | | ?????# ##???? ???????????????? | | ????## #?????? ???????????????? | | #???# ## ##????????????????????????? | | ????# ######???#?????????????????????? | | ????## ###??????????????????????????????? | | ?????####### ##???????????????????????????????? | | ???????????## ##??????????????????????????????? | | ???????##???# #??????????????????????????????? | | ????#### ??## #??????????????????????????????? | | ????# ??## #????#??????#??????????????????? | | ?????# #?## #??????????????????????????????? | | ????????# ## ##??????????????????????????????? | | ???????## #???????????????????????????????? | | ???????# #???????????????????????????????? | | ???????# ##???????????#??????????????????? | | ???????## ## #????#?????????????????????????? | | ????????####?## ####???????????????????????????? | | ??????????###?# ### #??????????????????????????? | | ??????#??## ### ### #???????##?#??????????????? | | ?????## ?# ## #??#??## ##???????????????? | | ?????# ?## ## ######" #???????????????? | | ?????# ## ##?# """ # ##""??????????? | | ?????# # ###??# " ??????????? | | ??????# # ##???# ! ??????????? | | ??????## ##### / @ R %" O ??????????? | | ???????### ## """ #??????????????? | | ?????????##[ ###"""""#???????????????? | | ??????????# ##???"###????????????????? | | ?????????## [ ##????#??????????????????? | | ?????????# #???????????????????????? | | ?????????# ### ! ^ #??????#????#???????????? | | ?????????## #?# ^ ##??????????????????????? | | ?????????## #?## ### #???#??????????????????? | | ???????### ##?# #?## ##???#??????????????????? | | ??????## ### #?## ##??????#??????????????? | | ??????# ## ### ##??????#?????????????? | | ??????# # #????????????????????? | | ??????#### ### #??????????????????? | | ?????????##### ### #?# ##??????????????????? | | ?????????????####### #?# #???????????????????? | | ????????????????### ##? " #???????????????????? | | ????????????????# ##??""""##???????????????????? | | ????????????????# ###?"""" ##???????????????????? | | ????????????????####???"" ##????????????????????? | | ??????????????????????[" #?????????????????????? | | ???????????????????????? ??????????????????????? | | ???#???????????#???????? ??????????????????????? | | ???????????????????????? "??????????????????????? | | ?????????????????????????????????????????????????? | +----------------------------------------------------+ Best States ------------- Heat Dissipation 25 Energy Generation 10 Energy Capacity 250 Matter Stores 300 Matter Capacity 300 Sight Range 16 Terrain Scan Range 16 Terrain Scan Density 10 Resistance: KI 35 Resistance: TH 35 Resistance: EX 35 Resistance: EM 35 Resistance: I 35 Resistance: S 35 Resistance: P 35 Evasion (%) 63 Offensive Hacking 20 Item Schematics ----------------- None Robot Schematics ------------------ None Fabricated ------------ Nothing Repaired ---------- Nothing Studied --------- None Alien Tech Used ----------------- None Achievements -------------- None Challenges ------------ None Game ------ Seed DisruptionFlakDoomcannon Manual? 0 Play Time 00:17:39 Cumulative 195.0 hours Start 2025.12.12 @ 13:40:02 End 2025.12.12 @ 13:54:08 Sessions 1 Manual Loads 0 Difficulty Explorer Special Mode None Game No. 285 Rogue 0 Adventurer 0 Explorer 285 Win Type - Total 0 Types 0/0/0/0/0/0/0/0/0/0 Lore% 71 Gallery% 67 Achievement% 53 Wizard Run 0 Options --------- Layout 1 ASCII 0 Keyboard 0 Movement Mouse Keybinds 0 Fullscreen 1 Font 24/Smallcaps Map View 50x35 Zoom Use 0% Tactical HUD 1 Map Filters NONE Filters NONE Steam 1 RUN: 42283355-3d02-49e9-b8e1-f11a72f0ab5a